[Event "World Senior chT-65 2019"]
[Site "Rhodes"]
[Date "2019.04.24"]
[Round "9.38"]
[White "Dalling, Peter"]
[Black "Bhend, Edwin"]
[Result "0-1"]
[ECO "B21"]
[WhiteElo "1830"]
[BlackElo "2120"]
[Annotator "NA"]
[PlyCount "96"]
[EventDate "2019.04.16"]
[EventType "team-tourn"]
[EventCountry "GRE"]
[SourceTitle "playchess.com"]
[Source "ChessBase"]
[SourceQuality "1"]
[WhiteTeam "Sweden"]
[BlackTeam "Switzerland"]
[WhiteTeamCountry "SWE"]
[BlackTeamCountry "SUI"]
[TimeControl "40/5400+30:1800+30"]

1. e4 {[%emt 0:00:00]} c5 {[%emt 0:00:00]} 2. Nf3 {[%emt 0:00:00]} Nc6 {[%emt 0:00:00]} 3. d4 {[%emt 0:00:00]} cxd4 {[%emt 0:00:00]} 4. c3 {[%emt 0:00:00]} dxc3 {[%emt 0:00:08]} 5. Nxc3 {[%emt 0:00:00]} d6 {[%emt 0:00:11]} 6. Bc4 {[%emt 0:00:00]} e6 {[%emt 0:01:02]} 7. Qe2 {[%emt 0:00:13]} Nf6 {[%emt 0:02:43]} 8. O-O {[%emt 0:00:24]} a6 {[%emt 0:00:15]} 9. a4 {[%emt 0:00:14]} Be7 {[%emt 0:00:18]} 10. Rd1 {[%emt 0:00:15]} Bd7 {[%emt 0:01:23]} 11. h3 {[%emt 0:00:17]} Qc7 {[%emt 0:01:39]} 12. Bf4 {[%emt 0:00:11]} Ne5 {[%emt 0:05:31]} 13. Bb3 {[%emt 0:04:48]} O-O {[%emt 0:01:24]} 14. Nd4 {[%emt 0:01:43]} Rfe8 {[%emt 0:04:55]} 15. Rac1 {[%emt 0:01:44]} Qb8 {[%emt 0:00:16]} 16. Bg3 {[%emt 0:04:24]} Nc6 {[%emt 0:03:35]} 17. Nf3 {[%emt 0:00:30]} b6 {[%emt 0:09:42]} 18. e5 {[%emt 0:07:27]} dxe5 {[%emt 0:00:05]} 19. Nxe5 {[%emt 0:00:11]} Nxe5 {[%emt 0:00:06]} 20. Bxe5 {[%emt 0:00:05]} Qb7 {[%emt 0:00:03]} 21. Bc2 {[%emt 0:04:13]} Bc6 {[%emt 0:00:46]} 22. Bxf6 {[%emt 0:03:03]} Bxf6 {[%emt 0:00:18]} 23. Ne4 {[%emt 0:00:09]} Be7 {[%emt 0:01:49]} 24. f3 {[%emt 0:07:21]} Rad8 {[%emt 0:01:41]} 25. Qe1 {[%emt 0:08:23]} f5 {[%emt 0:04:30]} 26. Nc3 {[%emt 0:00:58]} Bc5+ {[%emt 0:07:02]} 27. Kh2 {[%emt 0:02:04]} Qc7+ {[%emt 0:04:15]} 28. Kh1 {[%emt 0:00:21]} Qe7 {[%emt 0:05:09]} 29. Qg3 {[%emt 0:07:57]} Bd6 {[%emt 0:06:51]} 30. Qf2 {[%emt 0:01:06]} Bc7 {[%emt 0:00:06]} 31. Ne2 {[%emt 0:03:26]} Rxd1+ {[%emt 0:01:57]} 32. Bxd1 {[%emt 0:00:55]} Rd8 {[%emt 0:08:55]} 33. Qe1 {[%emt 0:04:56]} Bb7 {[%emt 0:07:10]} 34. Qc3 {[%emt 0:03:44]} Bb8 {[%emt 0:01:36]} 35. Qb3 {[%emt 0:01:37]} Qd6 {[%emt 0:00:45]} 36. f4 {[%emt 0:01:15]} Bd5 {[%emt 0:01:13]} 37. Qg3 {[%emt 0:01:38]} Qb4 {[%emt 0:00:50]} 38. b3 {[%emt 0:01:29]} Qd2 {[%emt 0:01:19]} 39. Qc3 {[%emt 0:01:38]} Bxf4 {[%emt 0:00:41]} 40. Nxf4 {[%emt 0:00:00]} Qxf4 {[%emt 0:00:00]} 41. Be2 {[%emt 0:01:56]} a5 {[%emt 0:01:30]} 42. Rf1 {[%emt 0:00:20]} Qd6 {[%emt 0:02:06]} 43. Rd1 {[%emt 0:00:52]} Qb8 {[%emt 0:04:15]} 44. Rc1 {[%emt 0:01:30]} h6 {[%emt 0:05:25]} 45. b4 {[%emt 0:02:24]} axb4 {[%emt 0:02:33]} 46. Qxb4 {[%emt 0:00:09]} Qg3 {[%emt 0:00:08]} 47. Bf3 {[%emt 0:02:15]} Bxf3 {[%emt 0:00:15]} 48. gxf3 {[%emt 0:00:04]} Qxh3+ {[%emt 0:00:19]} 0-1

[Event "World Senior chT-65 2019"]
[Site "Rhodes"]
[Date "2019.04.24"]
[Round "9.39"]
[White "Kradolfer, Georg"]
[Black "Palsson, Bertil"]
[Result "1-0"]
[ECO "B38"]
[WhiteElo "2048"]
[BlackElo "1785"]
[Annotator "NA"]
[PlyCount "55"]
[EventDate "2019.04.16"]
[EventType "team-tourn"]
[EventCountry "GRE"]
[SourceTitle "playchess.com"]
[Source "ChessBase"]
[SourceQuality "1"]
[WhiteTeam "Switzerland"]
[BlackTeam "Sweden"]
[WhiteTeamCountry "SUI"]
[BlackTeamCountry "SWE"]
[TimeControl "40/5400+30:1800+30"]

1. c4 {[%emt 0:00:15]} c5 {[%emt 0:00:00]} 2. Nf3 {[%emt 0:00:40]} Nf6 {[%emt 0:00:00]} 3. d4 {[%emt 0:01:30]} cxd4 {[%emt 0:00:14]} 4. Nxd4 {[%emt 0:00:08]} g6 {[%emt 0:02:08]} 5. Nc3 {[%emt 0:00:35]} Bg7 {[%emt 0:01:28]} 6. e4 {[%emt 0:02:42]} d6 {[%emt 0:00:21]} 7. Be2 {[%emt 0:01:10]} O-O {[%emt 0:00:30]} 8. O-O {[%emt 0:00:59]} Nc6 {[%emt 0:00:51]} 9. Be3 {[%emt 0:09:26]} Nxd4 {[%emt 0:08:21]} 10. Bxd4 {[%emt 0:00:06]} b6 {[%emt 0:01:41]} 11. Rc1 {[%emt 0:07:22]} Bb7 {[%emt 0:03:31]} 12. Qd3 {[%emt 0:07:07]} Rc8 {[%emt 0:02:18]} 13. f4 {[%emt 0:07:02]} e6 {[%emt 0:05:50]} 14. Kh1 {[%emt 0:05:09]} Ba6 {[%emt 0:03:31]} 15. b3 {[%emt 0:03:08]} d5 {[%emt 0:08:00]} 16. exd5 {[%emt 0:00:36]} exd5 {[%emt 0:05:36]} 17. Bxf6 {[%emt 0:00:33]} Bxf6 {[%emt 0:00:22]} 18. Nxd5 {[%emt 0:00:10]} Bg7 {[%emt 0:00:30]} 19. f5 {[%emt 0:06:36]} Rc6 {[%emt 0:02:28]} 20. Rcd1 {[%emt 0:07:10]} Re8 {[%emt 0:06:37]} 21. Bf3 {[%emt 0:10:22]} Rd6 {[%emt 0:02:54]} 22. Ne7+ {[%emt 0:01:26]} Qxe7 {[%emt 0:04:26]} 23. Qxd6 {[%emt 0:00:09]} Qxd6 {[%emt 0:02:43]} 24. Rxd6 {[%emt 0:00:08]} gxf5 {[%emt 0:01:44]} 25. Rfd1 {[%emt 0:00:44]} Bc8 {[%emt 0:00:55]} 26. Rd8 {[%emt 0:00:33]} Kf8 {[%emt 0:00:09]} 27. Bc6 {[%emt 0:00:28]} Rxd8 {[%emt 0:00:50]} 28. Rxd8+ {[%emt 0:00:11]} 1-0

[Event "World Senior chT-65 2019"]
[Site "Rhodes"]
[Date "2019.04.24"]
[Round "9.40"]
[White "Gunnarsson, Lennart"]
[Black "Illi, Hans-Joerg"]
[Result "1/2-1/2"]
[ECO "E33"]
[WhiteElo "1752"]
[BlackElo "2002"]
[Annotator "NA RC"]
[PlyCount "36"]
[EventDate "2019.04.16"]
[EventType "team-tourn"]
[EventCountry "GRE"]
[SourceTitle "playchess.com"]
[Source "ChessBase"]
[SourceQuality "1"]
[WhiteTeam "Sweden"]
[BlackTeam "Switzerland"]
[WhiteTeamCountry "SWE"]
[BlackTeamCountry "SUI"]
[TimeControl "40/5400+30:1800+30"]

1. d4 {[%emt 0:00:00]} Nf6 {[%emt 0:00:00]} 2. c4 {[%emt 0:00:18]} e6 {[%emt 0:00:14]} 3. Nc3 {[%emt 0:02:31]} Bb4 {[%emt 0:00:09]} 4. Qc2 {[%emt 0:00:21]} Nc6 {[%emt 0:02:25]} 5. e3 {[%emt 0:05:24]} d5 {[%emt 0:01:39]} 6. Bd2 {[%emt 0:01:57]} O-O {[%emt 0:00:33]} 7. Nf3 {[%emt 0:00:29]} Bxc3 {[%emt 0:02:04]} 8. Bxc3 {[%emt 0:00:54]} Ne4 {[%emt 0:04:54]} 9. Bd3 {[%emt 0:02:52]} f5 {[%emt 0:03:01]} 10. g3 {[%emt 0:14:30]} Ne7 {[%emt 0:07:13]} 11. Ne5 {[%emt 0:08:03]} c6 {[%emt 0:02:46]} 12. h4 {[%emt 0:06:23]} Bd7 {[%emt 0:01:38]} 13. O-O-O {[%emt 0:12:41]} b5 {[%emt 0:05:29]} 14. c5 {[%emt 0:01:36]} Ng6 {[%emt 0:03:03]} 15. Nxg6 {[%emt 0:01:15]} hxg6 {[%emt 0:00:15]} 16. Be1 {[%emt 0:01:38]} Kf7 {[%emt 0:04:52]} 17. f3 {[%emt 0:02:28]} Nf6 {[%emt 0:00:27]} 18. Bf2 {[%emt 0:02:13]} Qa5 {[%emt 0:10:31]} 1/2-1/2

[Event "World Senior chT-65 2019"]
[Site "Rhodes"]
[Date "2019.04.24"]
[Round "9.41"]
[White "Carlile, Orison"]
[Black "Rooze, Jan"]
[Result "1/2-1/2"]
[ECO "B20"]
[WhiteElo "2037"]
[BlackElo "2261"]
[Annotator "NA"]
[PlyCount "55"]
[EventDate "2019.04.16"]
[EventType "team-tourn"]
[EventCountry "GRE"]
[SourceTitle "playchess.com"]
[Source "ChessBase"]
[SourceQuality "1"]
[WhiteTeam "Ireland"]
[BlackTeam "Belgium"]
[WhiteTeamCountry "IRL"]
[BlackTeamCountry "BEL"]
[TimeControl "40/5400+30:1800+30"]

1. e4 {[%emt 0:00:00]} c5 {[%emt 0:00:00]} 2. a3 {[%emt 0:00:00]} g6 {[%emt 0:02:50]} 3. d4 {[%emt 0:00:00]} cxd4 {[%emt 0:00:17]} 4. c3 {[%emt 0:00:00]} d3 {[%emt 0:05:44]} 5. Bxd3 {[%emt 0:00:36]} Bg7 {[%emt 0:00:05]} 6. Nf3 {[%emt 0:03:59]} d6 {[%emt 0:01:16]} 7. O-O {[%emt 0:01:31]} Nc6 {[%emt 0:00:41]} 8. Re1 {[%emt 0:10:02]} Nf6 {[%emt 0:01:12]} 9. Nbd2 {[%emt 0:03:29]} O-O {[%emt 0:00:12]} 10. Bc4 {[%emt 0:05:02]} Bd7 {[%emt 0:08:04]} 11. Nd4 {[%emt 0:08:55]} Rc8 {[%emt 0:04:31]} 12. Ba2 {[%emt 0:01:36]} Ne5 {[%emt 0:15:29]} 13. Qe2 {[%emt 0:08:18]} Qb6 {[%emt 0:03:35]} 14. h3 {[%emt 0:01:57]} Rfd8 {[%emt 0:05:30]} 15. Nc4 {[%emt 0:11:00]} Qc5 {[%emt 0:03:34]} 16. Nxe5 {[%emt 0:06:15]} dxe5 {[%emt 0:00:15]} 17. Nb3 {[%emt 0:01:02]} Qc7 {[%emt 0:01:32]} 18. g4 {[%emt 0:09:07]} Bc6 {[%emt 0:02:15]} 19. f3 {[%emt 0:00:24]} Nd7 {[%emt 0:06:06]} 20. Be3 {[%emt 0:00:28]} Nf8 {[%emt 0:00:31]} 21. Rad1 {[%emt 0:03:09]} Ne6 {[%emt 0:00:46]} 22. Rxd8+ {[%emt 0:04:22]} Rxd8 {[%emt 0:00:11]} 23. Rd1 {[%emt 0:00:17]} Bf6 {[%emt 0:10:48]} 24. Rxd8+ {[%emt 0:01:22]} Qxd8 {[%emt 0:02:07]} 25. Qd2 {[%emt 0:01:01]} Qxd2 {[%emt 0:01:41]} 26. Nxd2 {[%emt 0:01:24]} Nf4 {[%emt 0:01:07]} 27. Bxf4 {[%emt 0:01:53]} exf4 {[%emt 0:00:08]} 28. Bd5 {[%emt 0:01:36]} 1/2-1/2

[Event "World Senior chT-65 2019"]
[Site "Rhodes"]
[Date "2019.04.24"]
[Round "9.42"]
[White "Van de Wynkele, Herman"]
[Black "Murray, Jim G."]
[Result "1-0"]
[ECO "C15"]
[WhiteElo "2129"]
[BlackElo "1845"]
[Annotator "NA"]
[PlyCount "83"]
[EventDate "2019.04.16"]
[EventType "team-tourn"]
[EventCountry "GRE"]
[SourceTitle "playchess.com"]
[Source "ChessBase"]
[SourceQuality "1"]
[WhiteTeam "Belgium"]
[BlackTeam "Ireland"]
[WhiteTeamCountry "BEL"]
[BlackTeamCountry "IRL"]
[TimeControl "40/5400+30:1800+30"]

1. e4 {[%emt 0:02:18]} e6 {[%emt 0:00:00]} 2. d4 {[%emt 0:00:18]} d5 {[%emt 0:00:00]} 3. Nc3 {[%emt 0:00:15]} Bb4 {[%emt 0:00:06]} 4. a3 {[%emt 0:00:17]} Bxc3+ {[%emt 0:00:18]} 5. bxc3 {[%emt 0:00:02]} dxe4 {[%emt 0:00:14]} 6. f3 {[%emt 0:00:02]} c5 {[%emt 0:02:32]} 7. Be3 {[%emt 0:03:08]} Nc6 {[%emt 0:04:22]} 8. Qd2 {[%emt 0:03:00]} Nf6 {[%emt 0:02:28]} 9. O-O-O {[%emt 0:03:23]} Qa5 {[%emt 0:05:23]} 10. Kb2 {[%emt 0:00:27]} O-O {[%emt 0:01:52]} 11. fxe4 {[%emt 0:03:37]} cxd4 {[%emt 0:10:06]} 12. cxd4 {[%emt 0:01:29]} Qxd2 {[%emt 0:00:41]} 13. Rxd2 {[%emt 0:02:02]} Nxe4 {[%emt 0:00:11]} 14. Rd1 {[%emt 0:00:06]} b6 {[%emt 0:14:49]} 15. Bd3 {[%emt 0:05:37]} Nf6 {[%emt 0:00:59]} 16. Nf3 {[%emt 0:03:23]} h6 {[%emt 0:04:29]} 17. Rhf1 {[%emt 0:03:23]} Bb7 {[%emt 0:01:53]} 18. h3 {[%emt 0:01:58]} Rac8 {[%emt 0:03:38]} 19. g4 {[%emt 0:00:12]} Na5 {[%emt 0:01:21]} 20. Ne5 {[%emt 0:02:10]} Be4 {[%emt 0:07:30]} 21. Bxh6 {[%emt 0:02:03]} Bxd3 {[%emt 0:02:06]} 22. Rxd3 {[%emt 0:01:28]} Nd5 {[%emt 0:01:41]} 23. Bd2 {[%emt 0:08:59]} Nc4+ {[%emt 0:02:14]} 24. Nxc4 {[%emt 0:01:36]} Rxc4 {[%emt 0:00:09]} 25. c3 {[%emt 0:01:14]} Nf6 {[%emt 0:10:32]} 26. Re1 {[%emt 0:00:26]} Rfc8 {[%emt 0:09:35]} 27. Rf3 {[%emt 0:03:18]} Nd5 {[%emt 0:01:17]} 28. Ref1 {[%emt 0:01:31]} R8c7 {[%emt 0:00:48]} 29. g5 {[%emt 0:01:03]} g6 {[%emt 0:03:19]} 30. Be1 {[%emt 0:00:46]} b5 {[%emt 0:00:49]} 31. Bg3 {[%emt 0:01:12]} Rb7 {[%emt 0:00:06]} 32. Be5 {[%emt 0:07:46]} a5 {[%emt 0:00:12]} 33. Kb3 {[%emt 0:02:14]} Rc6 {[%emt 0:03:14]} 34. Re1 {[%emt 0:04:08]} b4 {[%emt 0:00:39]} 35. axb4 {[%emt 0:00:26]} a4+ {[%emt 0:02:34]} 36. Kb2 {[%emt 0:01:19]} Nb6 {[%emt 0:02:11]} 37. Bf6 {[%emt 0:01:16]} Nc4+ {[%emt 0:00:12]} 38. Ka2 {[%emt 0:01:06]} Nd2 {[%emt 0:01:43]} 39. Rd3 {[%emt 0:01:54]} Nc4 {[%emt 0:01:06]} 40. Re4 {[%emt 0:00:00]} Kf8 {[%emt 0:00:00]} 41. d5 {[%emt 0:01:10]} Rc8 {[%emt 0:03:06]} 42. Rh4 {[%emt 0:02:12]} 1-0

[Event "World Senior chT-65 2019"]
[Site "Rhodes"]
[Date "2019.04.24"]
[Round "9.43"]
[White "Gibson, John F."]
[Black "Van Herck, Marcel"]
[Result "1/2-1/2"]
[ECO "A36"]
[WhiteElo "1818"]
[BlackElo "2066"]
[Annotator "NA"]
[PlyCount "34"]
[EventDate "2019.04.16"]
[EventType "team-tourn"]
[EventCountry "GRE"]
[SourceTitle "playchess.com"]
[Source "ChessBase"]
[SourceQuality "1"]
[WhiteTeam "Ireland"]
[BlackTeam "Belgium"]
[WhiteTeamCountry "IRL"]
[BlackTeamCountry "BEL"]
[TimeControl "40/5400+30:1800+30"]

1. c4 {[%emt 0:00:05]} Nf6 {[%emt 0:03:28]} 2. Nc3 {[%emt 0:00:06]} g6 {[%emt 0:01:35]} 3. g3 {[%emt 0:00:09]} Bg7 {[%emt 0:01:33]} 4. Bg2 {[%emt 0:00:04]} O-O {[%emt 0:00:23]} 5. e4 {[%emt 0:00:06]} d6 {[%emt 0:00:08]} 6. Nge2 {[%emt 0:00:06]} c5 {[%emt 0:01:33]} 7. O-O {[%emt 0:00:10]} Nc6 {[%emt 0:00:46]} 8. d3 {[%emt 0:00:47]} Nd4 {[%emt 0:07:06]} 9. h3 {[%emt 0:02:29]} Ne8 {[%emt 0:04:19]} 10. f4 {[%emt 0:02:40]} f5 {[%emt 0:05:18]} 11. Rb1 {[%emt 0:02:34]} Rb8 $11 {[%emt 0:20:44]} 12. Kh2 {[%emt 0:04:15]} a5 {[%emt 0:07:51]} 13. Be3 {[%emt 0:04:08]} Nc7 {[%emt 0:00:32]} 14. a4 {[%emt 0:14:25]} Bd7 {[%emt 0:04:58]} 15. b3 {[%emt 0:04:17]} Bc6 {[%emt 0:01:01]} 16. Nb5 {[%emt 0:06:41]} Nce6 {[%emt 0:05:43]} 17. Qd2 {[%emt 0:04:36]} Nxe2 {[%emt 0:03:05]} 1/2-1/2

[Event "World Senior chT-65 2019"]
[Site "Rhodes"]
[Date "2019.04.24"]
[Round "9.44"]
[White "Schrickx, Frank"]
[Black "Lynch, Peter J."]
[Result "1/2-1/2"]
[ECO "B22"]
[WhiteElo "1823"]
[BlackElo "1696"]
[Annotator "NA"]
[PlyCount "92"]
[EventDate "2019.04.16"]
[EventType "team-tourn"]
[EventCountry "GRE"]
[SourceTitle "playchess.com"]
[Source "ChessBase"]
[SourceQuality "1"]
[WhiteTeam "Belgium"]
[BlackTeam "Ireland"]
[WhiteTeamCountry "BEL"]
[BlackTeamCountry "IRL"]
[TimeControl "40/5400+30:1800+30"]

1. e4 {[%emt 0:00:00]} c5 {[%emt 0:00:00]} 2. c3 {[%emt 0:00:00]} Nf6 {[%emt 0:00:05]} 3. e5 {[%emt 0:00:00]} Nd5 {[%emt 0:00:14]} 4. d4 {[%emt 0:00:00]} cxd4 {[%emt 0:00:20]} 5. cxd4 {[%emt 0:00:00]} Nc6 {[%emt 0:01:14]} 6. Nf3 {[%emt 0:00:42]} d6 {[%emt 0:00:26]} 7. Bc4 {[%emt 0:01:34]} Nb6 {[%emt 0:00:39]} 8. Bb5 {[%emt 0:00:45]} dxe5 {[%emt 0:00:50]} 9. Nxe5 {[%emt 0:00:25]} Bd7 {[%emt 0:00:33]} 10. Nxd7 {[%emt 0:02:52]} Nxd7 {[%emt 0:01:38]} 11. Nc3 {[%emt 0:03:35]} e6 {[%emt 0:01:46]} 12. O-O {[%emt 0:00:57]} Nf6 {[%emt 0:12:37]} 13. Qa4 {[%emt 0:03:16]} Qb6 {[%emt 0:06:03]} 14. Be3 {[%emt 0:04:59]} Nd5 {[%emt 0:03:10]} 15. Nxd5 {[%emt 0:01:41]} exd5 {[%emt 0:00:30]} 16. Rac1 {[%emt 0:00:32]} Rc8 {[%emt 0:01:09]} 17. Rc2 {[%emt 0:04:48]} Be7 {[%emt 0:09:06]} 18. Rfc1 {[%emt 0:00:41]} O-O {[%emt 0:03:39]} 19. Bxc6 {[%emt 0:02:28]} bxc6 {[%emt 0:00:40]} 20. b3 {[%emt 0:05:01]} Rfd8 {[%emt 0:05:56]} 21. Rxc6 {[%emt 0:01:03]} Rxc6 {[%emt 0:00:33]} 22. Qxc6 {[%emt 0:01:06]} Qb8 {[%emt 0:02:56]} 23. Qc7 {[%emt 0:01:15]} Bd6 {[%emt 0:02:29]} 24. Qxb8 {[%emt 0:00:40]} Bxb8 {[%emt 0:00:10]} 25. g3 {[%emt 0:00:54]} Kf8 {[%emt 0:01:20]} 26. Kf1 {[%emt 0:00:50]} Ke7 {[%emt 0:00:43]} 27. Ke2 {[%emt 0:00:31]} Bd6 {[%emt 0:04:04]} 28. Rc6 {[%emt 0:01:26]} Rd7 {[%emt 0:01:45]} 29. Kd3 {[%emt 0:00:47]} h6 {[%emt 0:04:05]} 30. Bd2 {[%emt 0:02:50]} Rb7 {[%emt 0:01:27]} 31. Rc8 {[%emt 0:01:41]} Rc7 {[%emt 0:02:17]} 32. Rg8 {[%emt 0:01:49]} Kf6 {[%emt 0:01:17]} 33. Ra8 {[%emt 0:02:07]} Ke7 {[%emt 0:01:40]} 34. b4 {[%emt 0:00:50]} Kd7 {[%emt 0:01:36]} 35. a3 {[%emt 0:01:52]} Kc6 {[%emt 0:02:05]} 36. Rb8 {[%emt 0:00:56]} Re7 {[%emt 0:01:43]} 37. b5+ {[%emt 0:03:59]} Kd7 {[%emt 0:01:33]} 38. Rb7+ {[%emt 0:02:13]} Kc8 {[%emt 0:00:44]} 39. Rxe7 {[%emt 0:00:18]} Bxe7 {[%emt 0:00:07]} 40. a4 {[%emt 0:00:00]} Kb7 {[%emt 0:00:00]} 41. a5 {[%emt 0:03:23]} Bd6 {[%emt 0:01:55]} 42. Kc3 {[%emt 0:02:56]} g5 {[%emt 0:03:08]} 43. Kb3 {[%emt 0:00:28]} f5 {[%emt 0:03:41]} 44. Bb4 {[%emt 0:00:42]} Bc7 {[%emt 0:03:57]} 45. Bf8 {[%emt 0:00:41]} Bxa5 {[%emt 0:00:41]} 46. Bxh6 {[%emt 0:00:04]} g4 {[%emt 0:03:23]} 1/2-1/2